bitfinex/quotes_BTCUSD_20260315
["timestamp","ask_amount","ask_price","bid_price","bid_amount"]
[1773543698242,0.07008041,71518.0,71504.0,0.0014]
[1773543698571,0.07008041,71513.0,71497.0,0.0002]
[1773543698762,0.0014,71513.0,71497.0,0.0002]
[1773543698946,0.07008041,71512.0,71497.0,0.0002]
[1773543699109,0.05864272,71510.0,71497.0,0.07013265]
[1773543699309,0.13999972,71511.0,71497.0,0.0002]
[1773543699648,0.06991931,71511.0,71498.0,0.13852653]
[1773543699845,0.06991931,71511.0,71497.0,0.00030754]
[1773543699846,0.07769349,71510.0,71499.0,0.13852653]
[1773543700179,0.05864272,71510.0,71500.0,0.13852653]
[1773543700313,0.01905077,71509.0,71492.0,0.0014]
[1773543700509,0.05864272,71504.0,71492.0,0.0014]
[1773543700713,0.0014,71506.0,71492.0,0.0014]
[1773543701344,0.06992518,71505.0,71492.0,0.0014]
[1773543701543,0.02654014,71504.0,71492.0,0.0014]
[1773543701753,0.06992518,71505.0,71492.0,0.0014]
[1773543702137,0.09646532,71505.0,71492.0,0.0014]
[1773543702317,0.09646532,71505.0,71483.0,0.06994643]
[1773543702318,0.02654014,71502.0,71482.0,0.0016]
[1773543702520,0.02636623,71496.0,71482.0,0.0016]
[1773543703551,0.02684804,71491.0,71470.0,0.0004434]
[1773543703750,0.09203546,71489.0,71475.0,0.0016]
[1773543703953,0.02684804,71488.0,71475.0,0.0016]
[1773543704581,0.0014,71490.0,71473.0,0.06853771]
[1773543704781,0.06993496,71495.0,71473.0,0.06853771]
[1773543705539,0.07133496,71497.0,71475.0,0.06853771]
[1773543708379,0.07133496,71497.0,71476.0,0.06995355]
[1773543708576,0.07133496,71497.0,71477.0,0.06853771]
[1773543708898,0.07133496,71497.0,71479.0,0.06853771]
[1773543710259,0.0014,71496.0,71479.0,0.06853771]
[1773543710799,0.0014,71495.0,71480.0,0.146469]
[1773543711157,0.06993496,71497.0,71480.0,0.146469]
[1773543711375,0.0014,71496.0,71480.0,0.146469]
[1773543711576,0.0014,71496.0,71480.0,0.06994963]
[1773543711797,0.0014,71495.0,71481.0,0.07636373]
[1773543713440,0.0014,71495.0,71460.0,0.17613241]
[1773543713441,0.02654567,71493.0,71473.0,0.07155617]
[1773543713809,0.02654567,71493.0,71473.0,0.1479199]
[1773543714012,0.02654567,71493.0,71474.0,0.07776373]
[1773543714417,0.02654567,71493.0,71474.0,0.07636373]
[1773543714622,0.02654567,71493.0,71475.0,0.07776373]
[1773543715109,0.02654567,71493.0,71476.0,0.0014]
[1773543715453,0.06993789,71492.0,71476.0,0.06995355]
[1773543715622,0.06993789,71492.0,71477.0,0.0014]
[1773543716009,0.06993789,71492.0,71479.0,0.07636373]
[1773543716207,0.07133789,71492.0,71479.0,0.07636373]
[1773543716837,0.07115988,71492.0,71479.0,0.07636373]
[1773543717791,0.07115988,71492.0,71480.0,0.06994963]
[1773543718705,0.02839185,71491.0,71476.0,0.0014]
[1773543719247,0.07115988,71492.0,71476.0,0.0014]
[1773543719895,0.07115988,71492.0,71474.0,0.0014]
[1773543720793,0.07115988,71492.0,71475.0,0.0002]
[1773543723690,0.07115988,71492.0,71477.0,0.07636373]
[1773543723913,0.0014,71491.0,71477.0,0.07636373]
[1773543724299,0.06975988,71492.0,71477.0,0.07636373]
[1773543724648,0.0014,71490.0,71477.0,0.07636373]
[1773543724823,0.06975988,71492.0,71477.0,0.07636373]
[1773543725059,0.0014,71490.0,71477.0,0.07636373]
[1773543725692,0.06994083,71489.0,71478.0,0.07636373]
[1773543725895,0.06994083,71489.0,71476.0,0.07636373]
[1773543726143,0.05870632,71486.0,71475.0,0.0002]
[1773543726358,0.08074574,71486.0,71473.0,0.0014]
[1773543727349,0.08074574,71486.0,71473.0,0.00175848]
[1773543727528,0.06994083,71489.0,71473.0,0.00175848]
[1773543727700,0.08074574,71488.0,71474.0,0.0699555]
[1773543728675,0.08056778,71488.0,71474.0,0.0699555]
[1773543729399,0.08056778,71488.0,71474.0,0.0701555]
[1773543729806,0.06994278,71487.0,71474.0,0.0701555]
[1773543731039,0.08074574,71486.0,71474.0,0.0002]
[1773543731456,0.05870632,71484.0,71466.0,0.0002]
[1773543731775,0.08074574,71479.0,71467.0,0.0014]
[1773543731976,0.06995159,71478.0,71467.0,0.0014]
[1773543732780,0.08074574,71477.0,71467.0,0.0014]
[1773543733745,0.08074574,71477.0,71466.0,0.0002]
[1773543734079,0.08074574,71475.0,71466.0,0.0002]
[1773543736371,0.0699555,71474.0,71466.0,0.0002]
[1773543740430,0.00034969,71490.0,71469.0,0.07636373]
[1773543740585,0.03824959,71491.0,71471.0,0.07636373]
[1773543740779,0.03824959,71491.0,71473.0,0.07636373]
[1773543741327,0.03824959,71491.0,71477.0,0.07636373]
[1773543741530,0.03824959,71491.0,71479.0,0.07973331]
[1773543741762,0.03824959,71491.0,71480.0,0.13869882]
[1773543741881,0.03824959,71491.0,71478.0,0.0014]
[1773543741882,0.03824959,71491.0,71482.0,0.07973331]
[1773543742189,0.03824959,71491.0,71483.0,0.13869882]
[1773543742388,0.03824959,71491.0,71484.0,0.14009882]
[1773543742691,0.03824959,71491.0,71485.0,0.13869882]
[1773543742982,0.03824959,71491.0,71486.0,0.13869882]
[1773543743163,0.03824959,71491.0,71487.0,0.13869882]
[1773543743313,0.03824959,71491.0,71488.0,0.13869882]
[1773543743514,0.03824959,71491.0,71484.0,0.0014]
[1773543743720,0.03824959,71491.0,71485.0,0.13870107]
[1773543743920,0.03824959,71491.0,71486.0,0.13870107]
[1773543744126,0.03824959,71491.0,71484.0,0.0014]
[1773543744127,0.03824959,71491.0,71487.0,0.13870107]
[1773543744388,0.03824959,71491.0,71488.0,0.13870107]
[1773543744537,0.03824959,71491.0,71483.0,0.0014]
[1773543744737,0.03824959,71491.0,71484.0,0.1386973]
[1773543745073,0.03824959,71491.0,71485.0,0.1386973]
[1773543745271,0.03824959,71491.0,71486.0,0.1386973]
[1773543745578,0.03824959,71491.0,71487.0,0.1386973]
[1773543745773,0.03824959,71491.0,71483.0,0.0014]
[1773543748002,0.03824959,71491.0,71481.0,0.08113331]
[1773543748583,0.03824959,71491.0,71481.0,0.0014]
[1773543750909,0.03824959,71491.0,71482.0,0.0014]
[1773543751514,0.0384696,71491.0,71482.0,0.0014]
[1773543754422,0.07015134,71499.0,71483.0,0.07973331]
[1773543754594,0.07015134,71499.0,71486.0,0.07973331]
[1773543754790,0.07015074,71500.0,71489.0,0.07973331]
[1773543754995,0.06993133,71499.0,71490.0,0.08113331]
[1773543755267,0.06993133,71499.0,71491.0,0.06993887]
[1773543755465,0.07017043,71504.0,71491.0,0.06993887]
[1773543755466,0.07017033,71504.0,71492.0,0.07973331]
[1773543755868,0.06992693,71504.0,71493.0,0.07973331]
[1773543756187,0.0699242,71506.0,71493.0,0.07973331]
[1773543756362,0.0001074,71506.0,71493.0,0.07973331]
[1773543756558,0.06992215,71509.0,71493.0,0.07973331]
[1773543756766,0.06992224,71508.0,71493.0,0.07984071]
[1773543757289,0.06992224,71510.0,71495.0,0.07973331]
[1773543757485,0.06992224,71510.0,71497.0,0.07973331]
[1773543757787,0.06992224,71510.0,71498.0,0.21814346]
[1773543757986,0.06992224,71510.0,71499.0,0.13841015]
[1773543758193,0.06992224,71510.0,71500.0,0.13841015]
[1773543758397,0.06992224,71510.0,71501.0,0.13841015]
[1773543758690,0.06992224,71510.0,71502.0,0.13981015]
[1773543758841,0.06992224,71510.0,71503.0,0.13841015]
[1773543759044,0.06992224,71510.0,71504.0,0.13841015]
[1773543759260,0.06992224,71510.0,71502.0,0.0014]
[1773543759493,0.06992224,71510.0,71503.0,0.13836302]
[1773543759699,0.06992224,71510.0,71502.0,0.0014]
[1773543759996,0.06992224,71510.0,71503.0,0.13836369]
[1773543760197,0.06992224,71510.0,71502.0,0.0014]
[1773543760947,0.07014225,71510.0,71497.0,0.06993264]
[1773543761147,0.0802355,71509.0,71498.0,0.13973035]
[1773543761427,0.06992224,71508.0,71499.0,0.13833035]
[1773543761652,0.06992224,71508.0,71500.0,0.13833035]
[1773543761850,0.06992224,71508.0,71501.0,0.13833035]
[1773543762012,0.06992224,71508.0,71502.0,0.13833035]
[1773543762218,0.06992224,71508.0,71498.0,0.0713316]
[1773543762428,0.06992224,71508.0,71499.0,0.13829192]
[1773543762595,0.06992224,71508.0,71498.0,0.0713316]
[1773543762596,0.06992224,71508.0,71500.0,0.13829192]
[1773543762799,0.06992224,71508.0,71501.0,0.13829192]
[1773543763012,0.06992224,71508.0,71502.0,0.13829192]
[1773543763212,0.06992224,71508.0,71500.0,0.0014]
[1773543763415,0.06925078,71508.0,71501.0,0.13828497]
[1773543763624,0.06925078,71508.0,71502.0,0.13828497]
[1773543763846,0.06925078,71508.0,71500.0,0.0014]
[1773543764195,0.06925078,71508.0,71501.0,0.13828484]
[1773543764366,0.06925078,71508.0,71502.0,0.13828484]
[1773543764573,0.06925078,71508.0,71500.0,0.0014]
[1773543764783,0.06925078,71508.0,71501.0,0.13829076]
[1773543765068,0.06925078,71508.0,71502.0,0.13829076]
[1773543765278,0.06925078,71508.0,71500.0,0.0014]
[1773543765481,0.06925078,71508.0,71501.0,0.1382993]
[1773543765686,0.06925078,71508.0,71502.0,0.1382993]
[1773543765896,0.06925078,71508.0,71500.0,0.0014]
[1773543766096,0.06925078,71508.0,71501.0,0.13829968]
[1773543766283,0.06925078,71508.0,71502.0,0.13829968]
[1773543766499,0.06925078,71508.0,71500.0,0.0014]
[1773543766700,0.06925078,71508.0,71499.0,0.0014]
[1773543767254,0.06991376,71517.0,71499.0,0.0014]
[1773543767453,0.06991376,71517.0,71502.0,0.07973331]
[1773543768288,0.00022001,71508.0,71502.0,0.07973331]
[1773543768451,0.00022001,71508.0,71501.0,0.06992909]
[1773543768655,0.00022001,71508.0,71498.0,0.06993153]
[1773543768879,0.00022001,71508.0,71499.0,0.0014]
[1773543769091,0.00022001,71508.0,71500.0,0.07973331]
[1773543769462,0.0701424,71508.0,71500.0,0.06993006]
[1773543771312,0.0701424,71508.0,71499.0,0.07133072]
[1773543771514,0.0701424,71508.0,71499.0,0.0014]
[1773543771860,0.08761914,71507.0,71499.0,0.0014]
[1773543773886,0.0699242,71506.0,71495.0,0.0699346]
[1773543774083,0.15754334,71506.0,71499.0,0.0014]
[1773543774469,0.08761914,71505.0,71498.0,0.0014]
[1773543775363,0.08761914,71505.0,71493.0,0.0001074]
[1773543775766,0.08761914,71505.0,71489.0,0.06994077]
[1773543775969,0.08761914,71505.0,71488.0,0.0014]
[1773543775970,0.08761914,71502.0,71488.0,0.0014]
[1773543776417,0.0014,71501.0,71488.0,0.0014]
[1773543776631,0.08761914,71500.0,71488.0,0.0014]
[1773543776815,0.08761914,71500.0,71491.0,0.0002]
[1773543777924,0.08761914,71498.0,71491.0,0.0002]
[1773543779691,0.08761914,71498.0,71482.0,0.0002]
[1773543779895,0.069933,71497.0,71483.0,0.13860327]
[1773543780096,0.08761914,71496.0,71484.0,0.13860327]
[1773543780295,0.08761914,71496.0,71485.0,0.13860327]
[1773543780503,0.0014,71495.0,71486.0,0.13860327]
[1773543780764,0.08761914,71494.0,71482.0,0.0016]
[1773543780929,0.08761914,71494.0,71483.0,0.13865558]
[1773543781107,0.08761914,71494.0,71484.0,0.13865558]
[1773543781304,0.08761914,71494.0,71485.0,0.13865558]
[1773543781507,0.08761914,71494.0,71482.0,0.0016]
[1773543781710,0.08761914,71494.0,71483.0,0.13863705]
[1773543781909,0.08761914,71494.0,71484.0,0.13863705]
[1773543782182,0.06993691,71493.0,71485.0,0.13863705]
[1773543782309,0.15755605,71493.0,71482.0,0.0002]
[1773543782510,0.06993691,71493.0,71483.0,0.13863794]
[1773543782815,0.08761914,71492.0,71484.0,0.13863794]
[1773543783017,0.08761914,71492.0,71482.0,0.0002]
[1773543783247,0.08761914,71492.0,71483.0,0.13863828]
[1773543783453,0.08761914,71492.0,71482.0,0.0002]
[1773543783660,0.08761914,71492.0,71483.0,0.02081641]
[1773543783830,0.08761914,71492.0,71477.0,0.0002]
[1773543784239,0.08761914,71490.0,71477.0,0.0002]
[1773543785240,0.07134083,71489.0,71477.0,0.0002]
[1773543785454,0.08761914,71488.0,71477.0,0.0002]
[1773543787277,0.06994278,71487.0,71476.0,0.0014]
[1773543787581,0.08761914,71485.0,71467.0,0.0002]
[1773543787728,0.08761914,71479.0,71467.0,0.0002]
[1773543788136,0.08761914,71479.0,71462.0,0.0002]
[1773543788137,0.08761914,71479.0,71459.0,0.0002]
[1773543788333,0.05869105,71470.0,71459.0,0.0002]
[1773543788536,0.08761914,71472.0,71459.0,0.0002]
[1773543788972,0.08761914,71472.0,71459.0,0.00055804]
[1773543789996,0.06995844,71471.0,71459.0,0.00055804]
[1773543790193,0.06995844,71471.0,71459.0,0.07052788]
[1773543791120,0.06995844,71471.0,71459.0,0.00055804]
[1773543792075,0.06995844,71472.0,71469.0,0.0002]
[1773543792407,0.06995844,71472.0,71469.0,7.1e-06]
[1773543792604,0.15756192,71487.0,71469.0,7.1e-06]
[1773543792800,0.0014,71486.0,71470.0,0.08915987]
[1773543793339,0.001,71472.0,71470.0,0.08915987]
[1773543793470,0.0014,71485.0,71470.0,0.08915987]
[1773543795321,0.06994572,71484.0,71471.0,0.06995844]
[1773543799152,0.06994572,71485.0,71471.0,0.06995844]
[1773543800191,0.06994572,71485.0,71471.0,0.07015844]
[1773543802351,0.06994572,71486.0,71472.0,0.13849391]
[1773543802528,0.07038909,71492.0,71474.0,0.09329024]
[1773543802709,0.06993949,71491.0,71476.0,0.09329024]
[1773543802910,0.07038879,71492.0,71478.0,0.09329024]
[1773543803125,0.07038879,71492.0,71480.0,0.09329024]
[1773543803329,0.07038879,71492.0,71481.0,0.13851725]
[1773543803551,0.07038879,71492.0,71482.0,0.0014]
[1773543804152,0.00045031,71492.0,71483.0,0.0699467]
[1773543804366,0.00034969,71490.0,71483.0,0.0699467]
[1773543804769,0.07038853,71492.0,71483.0,0.0699467]
[1773543804770,0.00045031,71492.0,71483.0,0.0699467]
[1773543804927,0.06993104,71499.0,71485.0,0.09329024]
[1773543805120,0.07003844,71499.0,71486.0,0.13856153]
[1773543805482,0.07003844,71499.0,71487.0,0.13856153]
[1773543806059,0.07003844,71499.0,71488.0,0.0014]
[1773543806259,0.07003844,71499.0,71489.0,0.13862393]
[1773543806475,0.07003844,71499.0,71488.0,0.0014]
[1773543806708,0.07003844,71499.0,71489.0,0.13860871]
[1773543806893,0.07018664,71499.0,71488.0,0.0014]
[1773543807042,0.07018664,71499.0,71489.0,0.13860875]
[1773543807246,0.07018664,71499.0,71488.0,0.0014]
[1773543807447,0.07132669,71504.0,71490.0,0.09329024]
[1773543807448,0.00022001,71500.0,71490.0,0.09329024]
[1773543807695,0.06992931,71501.0,71491.0,0.13859561]
[1773543807879,0.06992931,71501.0,71491.0,8.016e-05]
[1773543808266,0.06992425,71506.0,71491.0,8.016e-05]
[1773543808477,0.06992425,71506.0,71488.0,0.05338203]
[1773543808778,0.00022001,71500.0,71492.0,0.0014]
[1773543809835,0.00022001,71500.0,71493.0,0.0014]
[1773543810904,0.06993104,71499.0,71493.0,0.0014]
[1773543811908,0.0956155,71498.0,71493.0,0.0014]
[1773543812084,0.00029658,71493.0,71483.0,0.0699467]
[1773543812392,0.00029658,71493.0,71484.0,0.13992616]
[1773543812584,0.00029658,71493.0,71483.0,0.0699467]
[1773543812585,0.00029658,71493.0,71485.0,0.13992616]
[1773543812831,0.00029658,71493.0,71486.0,0.13852616]
[1773543812998,0.00029658,71493.0,71487.0,0.13852616]
[1773543813194,0.06993789,71492.0,71488.0,0.06774905]
[1773543813393,0.06993789,71492.0,71485.0,0.0014]
[1773543813394,0.0956155,71491.0,71485.0,0.0014]
[1773543813619,0.0956155,71491.0,71478.0,0.06995159]
[1773543813979,0.06993789,71492.0,71479.0,0.0014]
[1773543814180,0.06993181,71499.0,71481.0,0.05241104]
[1773543815422,0.06993181,71499.0,71483.0,0.05351658]
[1773543815423,0.07015182,71499.0,71483.0,0.05351658]
[1773543815828,0.06992616,71504.0,71483.0,0.05351658]
[1773543815985,0.06992713,71503.0,71483.0,0.05351658]
[1773543816187,0.07000471,71506.0,71490.0,0.05869105]
[1773543816392,0.07000471,71506.0,71491.0,0.15110739]
[1773543817377,0.07000471,71506.0,71492.0,0.06993789]
[1773543818335,0.07000471,71506.0,71492.0,0.12380093]
[1773543818531,0.07000471,71506.0,71492.0,0.06993789]
[1773543818691,0.07000471,71506.0,71493.0,0.05377087]
[1773543819516,0.07000471,71506.0,71492.0,0.06993789]
[1773543821401,0.07000471,71506.0,71491.0,0.16760999]
[1773543821402,0.07000471,71506.0,71491.0,0.0014]
[1773543821602,0.0956155,71505.0,71491.0,0.0014]
[1773543822642,0.0956155,71505.0,71488.0,0.06994154]
[1773543822817,0.0956155,71505.0,71489.0,0.0014]
[1773543823423,0.09298716,71505.0,71489.0,0.0014]
[1773543823645,0.06992615,71504.0,71490.0,0.06993985]
[1773543825342,0.06992615,71504.0,71491.0,0.13845832]
[1773543825659,0.06992615,71504.0,71492.0,0.13845832]
[1773543825843,0.06992615,71504.0,71493.0,0.13845832]
[1773543826038,0.06992615,71504.0,71494.0,0.13845832]
[1773543826243,0.06992615,71504.0,71495.0,0.0014]
[1773543826625,0.16554165,71504.0,71495.0,0.0014]
[1773543829405,0.16554165,71504.0,71496.0,0.13857545]
[1773543829580,0.06992615,71504.0,71495.0,0.0014]
[1773543829786,0.06992615,71504.0,71496.0,0.13857545]
[1773543830091,0.06992615,71504.0,71497.0,0.13856755]
[1773543830269,0.06992615,71504.0,71498.0,0.13861484]
[1773543830443,0.06992615,71504.0,71495.0,0.0014]
[1773543830651,0.06992615,71504.0,71496.0,0.13861498]
[1773543830855,0.07014616,71504.0,71497.0,0.13861498]
[1773543831075,0.07014616,71504.0,71498.0,0.13861498]
[1773543831277,0.07014616,71504.0,71495.0,0.0014]
[1773543831278,0.07014616,71504.0,71499.0,0.13866567]
[1773543831478,0.07014616,71504.0,71497.0,0.0014]
[1773543831679,0.07014616,71504.0,71498.0,0.13866643]
[1773543831892,0.07014616,71504.0,71499.0,0.13866643]
[1773543832090,0.08943131,71503.0,71497.0,0.0014]
[1773543832292,0.07014616,71504.0,71498.0,0.13866562]
[1773543832501,0.07014616,71504.0,71499.0,0.13866562]
[1773543832693,0.07014616,71504.0,71500.0,0.13866562]
[1773543832907,0.07014616,71504.0,71497.0,0.0014]
[1773543833121,0.07014616,71504.0,71498.0,0.13872346]
[1773543833409,0.08943131,71503.0,71499.0,0.13872346]
[1773543833716,0.08943131,71503.0,71500.0,0.09898146]
[1773543833896,0.08943131,71503.0,71497.0,0.0014]
[1773543834986,0.07014616,71504.0,71497.0,0.0014]
[1773543835681,0.07014616,71504.0,71492.0,0.06993728]
[1773543835883,0.05869105,71502.0,71486.0,0.0699418]
[1773543836107,0.05869105,71502.0,71487.0,0.11242881]
[1773543836108,0.08943131,71501.0,71487.0,0.11242881]
[1773543836307,0.08943131,71501.0,71488.0,0.11102881]
[1773543836837,0.08943131,71501.0,71487.0,0.11242881]
[1773543837063,0.15936137,71500.0,71487.0,0.18237083]
[1773543838273,0.06993006,71500.0,71487.0,0.18237083]
[1773543838959,0.08943131,71501.0,71487.0,0.18237083]
[1773543839522,0.08965132,71501.0,71487.0,0.18237083]
[1773543841140,0.07014616,71505.0,71487.0,0.18237083]
[1773543841141,8.017e-05,71506.0,71491.0,0.08938843]
[1773543841364,0.07014144,71509.0,71495.0,0.08938843]
[1773543841557,0.07049194,71508.0,71496.0,0.0014]
[1773543841761,0.07049194,71508.0,71496.0,0.09078843]
[1773543842089,0.07049194,71508.0,71496.0,0.20181724]
[1773543842390,0.00056962,71508.0,71497.0,0.08938843]
[1773543842937,0.07049207,71508.0,71497.0,0.08938843]
[1773543843747,0.07049207,71508.0,71498.0,0.06993202]
[1773543844989,0.08943131,71507.0,71482.0,0.16660598]
[1773543845188,0.14811165,71500.0,71483.0,0.0014]
[1773543845350,0.08943131,71506.0,71483.0,0.0014]
[1773543845750,0.08943131,71504.0,71485.0,0.06994474]
[1773543845952,0.05868034,71500.0,71482.0,0.0001074]
[1773543846152,0.05868034,71500.0,71483.0,0.0014]
[1773543846153,0.08943131,71499.0,71483.0,0.0014]
[1773543847289,0.08943131,71492.0,71479.0,0.0014]
[1773543848209,0.08943131,71490.0,71488.0,0.0002]
[1773543848414,0.08943131,71490.0,71481.0,0.0002]
[1773543850057,0.06993838,71492.0,71482.0,0.06994767]
[1773543850194,0.06993435,71496.0,71482.0,0.06994767]
[1773543850394,0.07004175,71496.0,71482.0,0.06994767]
[1773543850900,0.0001074,71496.0,71482.0,0.06994767]
[1773543851354,0.0001074,71496.0,71481.0,0.0002]
[1773543851707,0.08943131,71495.0,71482.0,0.0014]
[1773543851956,0.0001074,71496.0,71481.0,0.07014857]
[1773543852147,0.0001074,71496.0,71481.0,0.0016]
[1773543852443,0.08953871,71496.0,71481.0,0.0002]
[1773543852651,0.08953871,71496.0,71481.0,0.0016]
[1773543854278,0.08953871,71496.0,71479.0,0.0014]
[1773543854279,0.08943131,71489.0,71479.0,0.0014]
[1773543854456,0.08943131,71488.0,71479.0,0.0014]
[1773543855038,0.08943131,71488.0,71475.0,0.0014]
[1773543855639,0.09043131,71488.0,71475.0,0.0014]
[1773543855861,0.08943131,71488.0,71475.0,0.0014]
[1773543856054,0.08943131,71488.0,71474.0,0.0002]
[1773543856499,0.08943131,71486.0,71474.0,0.0002]
[1773543858589,0.06994474,71485.0,71474.0,0.07015486]
[1773543858748,0.06994474,71485.0,71474.0,0.0002]
[1773543860093,0.08943131,71484.0,71474.0,0.0016]
[1773543860456,0.0699467,71483.0,71474.0,0.0016]
[1773543861800,0.0699425,71488.0,71475.0,0.06995452]
[1773543862008,0.0699425,71488.0,71475.0,0.16498724]
[1773543862511,0.0699418,71490.0,71475.0,0.16498724]
[1773543864582,0.0699418,71490.0,71475.0,0.06995452]
[1773543864782,0.16523401,71490.0,71475.0,0.06995452]
[1773543865790,0.0699418,71490.0,71475.0,0.06995452]
[1773543866515,0.16523401,71490.0,71475.0,0.06995452]
[1773543867786,0.16523401,71490.0,71475.0,0.07022522]
[1773543868403,0.0699418,71490.0,71475.0,0.07022522]
[1773543868602,0.09529221,71489.0,71475.0,0.07022522]
[1773543870119,0.0699418,71488.0,71475.0,0.07022522]
[1773543873923,0.09529221,71487.0,71475.0,0.0002707]
[1773543874139,0.09669221,71486.0,71472.0,0.00174969]
[1773543874740,0.06994474,71485.0,71472.0,0.00174969]
[1773543874934,0.09529221,71484.0,71472.0,0.00174969]
[1773543875773,0.09529221,71484.0,71472.0,0.00034969]
[1773543875977,0.09529221,71484.0,71472.0,0.00174969]
[1773543876782,0.09529221,71484.0,71472.0,0.00034969]
[1773543877077,0.09529221,71482.0,71472.0,0.00034969]
[1773543877482,0.09529221,71482.0,71472.0,0.00054969]
[1773543878394,0.0014,71485.0,71472.0,0.00054969]
[1773543878596,0.09529221,71483.0,71472.0,0.00054969]
[1773543878961,0.16523988,71482.0,71472.0,0.00054969]
[1773543879799,0.16523988,71482.0,71471.0,0.0002]
[1773543880095,0.16523988,71482.0,71471.0,0.0016]
[1773543880273,0.09529221,71481.0,71471.0,0.0002]
[1773543881182,0.06994963,71480.0,71471.0,0.0002]
[1773543882053,0.09529221,71479.0,71471.0,0.0002]
[1773543883360,0.09529221,71479.0,71464.0,0.0002]
[1773543883361,0.09529221,71477.0,71464.0,0.0002]
[1773543883740,0.09669221,71476.0,71464.0,0.0002]
[1773543886552,0.09529221,71474.0,71471.0,0.0002]
[1773543887720,0.09629221,71474.0,71471.0,0.00055804]
[1773543887916,0.09629221,71474.0,71464.0,0.0002]
[1773543888121,0.09629221,71474.0,71464.0,0.00030751]
[1773543888323,0.09629221,71474.0,71462.0,0.0002]
[1773543888324,0.09529221,71473.0,71462.0,0.0002]
[1773543888641,0.09539964,71473.0,71462.0,0.0002]
[1773543888833,0.06995746,71472.0,71462.0,0.0002]
[1773543889626,0.16931319,71472.0,71462.0,0.0002]
[1773543890424,0.17031319,71472.0,71462.0,0.0002]
[1773543890753,0.16931319,71472.0,71462.0,0.0002]
[1773543890972,0.17031319,71472.0,71462.0,0.0002]
[1773543891173,0.16931319,71472.0,71462.0,0.0002]
[1773543891575,0.16931319,71472.0,71458.0,0.0002]
[1773543891576,0.09264649,71471.0,71454.0,0.00034978]
[1773543892347,0.0014,71470.0,71454.0,0.00034978]
[1773543892548,0.09264649,71469.0,71454.0,0.00034978]
[1773543893000,0.09275619,71469.0,71454.0,0.00034978]
[1773543893162,0.09264649,71467.0,71454.0,0.00034978]
[1773543893830,0.09275619,71467.0,71463.0,0.0002]
[1773543894150,0.09275619,71467.0,71454.0,0.00034978]
[1773543894501,0.09375619,71467.0,71454.0,0.00034978]
[1773543894712,0.09375619,71467.0,71326.0,0.00014801]
[1773543894713,0.09264649,71463.0,71432.0,0.06999617]
[1773543894912,0.09264649,71459.0,71435.0,0.09095349]
[1773543895087,0.09264649,71457.0,71435.0,0.09095349]
[1773543895498,0.06997313,71456.0,71448.0,0.0002]
[1773543897919,0.09264649,71455.0,71441.0,0.0014]
[1773543900030,0.09264649,71453.0,71441.0,0.0014]
[1773543900462,0.06996701,71463.0,71442.0,0.09105349]
[1773543900662,0.0002102,71464.0,71442.0,0.09105349]
[1773543900830,0.07017562,71464.0,71442.0,0.09105349]
[1773543901720,0.07017562,71464.0,71442.0,0.09205349]
[1773543901918,0.07017562,71464.0,71445.0,0.0699839]
[1773543902136,0.07017562,71464.0,71446.0,0.09105349]
[1773543902343,0.05874168,71460.0,71447.0,0.0014]
[1773543902519,0.06014168,71460.0,71447.0,0.0014]
[1773543902716,0.09264649,71459.0,71447.0,0.0014]
[1773543903839,0.09264649,71459.0,71442.0,0.0002]
[1773543904243,0.09264649,71457.0,71442.0,0.0002]
[1773543904662,0.06997037,71459.0,71443.0,0.09105349]
[1773543904824,0.06997037,71459.0,71441.0,0.06796773]
[1773543905023,0.06997037,71459.0,71445.0,0.09105349]
[1773543906903,0.12871187,71460.0,71444.0,0.06998456]
[1773543907203,0.09264649,71459.0,71446.0,0.0014]
[1773543907407,0.09264649,71459.0,71438.0,0.15658794]
[1773543907607,0.09264649,71455.0,71439.0,0.0014]
[1773543908539,0.0014,71454.0,71439.0,0.0014]
[1773543908733,0.06997606,71453.0,71440.0,0.0699888]
[1773543909281,0.06997606,71453.0,71439.0,0.0014]
[1773543909497,0.09264649,71452.0,71439.0,0.07138966]
[1773543910169,0.09264649,71452.0,71439.0,0.07158966]
[1773543910626,0.06997606,71453.0,71439.0,0.07158966]
[1773543911044,0.06997606,71453.0,71439.0,0.0016]
[1773543911178,0.09264649,71452.0,71439.0,0.0016]
[1773543911523,0.0002102,71464.0,71441.0,0.08604099]
[1773543911700,0.06996759,71462.0,71441.0,0.08604099]
[1773543911884,0.06996627,71463.0,71441.0,0.08604099]
[1773543912091,0.07017647,71464.0,71450.0,0.05874168]
[1773543912315,0.07017647,71464.0,71451.0,0.0014]
[1773543912722,0.06995844,71471.0,71455.0,0.08590546]
[1773543912928,0.06995844,71471.0,71460.0,0.05874168]
[1773543913102,0.0002102,71476.0,71462.0,0.08590546]
[1773543913481,0.0002102,71476.0,71463.0,0.08590546]
[1773543913482,0.07016456,71476.0,71463.0,0.08590546]
[1773543914159,0.0267196,71476.0,71463.0,0.08590546]
[1773543914939,0.06995065,71479.0,71464.0,0.1562018]
[1773543916864,0.06995065,71479.0,71464.0,0.15585193]
[1773543917566,0.06995065,71479.0,71464.0,0.15555517]
[1773543918062,0.07017066,71479.0,71464.0,0.15555517]
[1773543918665,0.07017066,71479.0,71464.0,0.06931866]
[1773543919400,0.16281715,71479.0,71465.0,0.0014]
[1773543919927,0.00034978,71472.0,71466.0,0.06996333]
[1773543921606,0.00034978,71472.0,71464.0,0.06931866]
[1773543921788,0.00034978,71472.0,71467.0,0.0014]
[1773543923396,0.00034978,71472.0,71466.0,0.0699632]
[1773543923616,0.00034978,71472.0,71467.0,0.0014]
[1773543925330,0.00056979,71472.0,71467.0,0.0014]
[1773543925857,0.00056979,71472.0,71462.0,0.00010743]
[1773543925992,0.00056979,71472.0,71466.0,0.0014]
[1773543929313,0.00056979,71472.0,71466.0,0.07136308]
[1773543929879,0.07017091,71479.0,71466.0,0.07136308]
[1773543930050,0.07017091,71479.0,71466.0,0.13616567]
[1773543930250,0.07017091,71479.0,71466.0,0.0014]
[1773543930403,0.09441543,71478.0,71466.0,0.07136327]
[1773543930598,0.09441543,71478.0,71466.0,0.06996327]
[1773543930798,0.09441543,71478.0,71467.0,0.0014]
[1773543931251,0.06995257,71477.0,71467.0,0.0014]
[1773543931928,0.06995257,71477.0,71467.0,0.07136174]
[1773543933308,0.06995257,71477.0,71467.0,0.0014]
[1773543933515,0.164368,71477.0,71467.0,0.0014]
[1773543933710,0.09441543,71476.0,71467.0,0.0014]
[1773543934239,0.06995257,71477.0,71468.0,0.13866025]
[1773543934431,0.06995257,71477.0,71467.0,0.07136234]
[1773543934605,0.06995257,71477.0,71468.0,0.13865904]
[1773543934815,0.06995257,71477.0,71467.0,0.07136234]
[1773543935024,0.06995257,71477.0,71468.0,0.13865892]
[1773543935267,0.06995257,71477.0,71467.0,0.07136234]
[1773543935565,0.06995257,71477.0,71468.0,0.13867924]
[1773543935758,0.06995257,71477.0,71467.0,0.07136234]